Cogmind - Beta 17 @@@ ROGUE MODE // 2026.07.17 @ 19:15:37 Player: IsAway Result: Self-destructed Performance ------------- Evolutions (3) 1500 Regions Visited (7) 1400 Robots Destroyed (35) 175 Value Destroyed (1050) 1050 Prototype IDs (27) 540 Alien Tech Used (0) 0 Bonus (300) 300 TOTAL SCORE: 4965 Bonus ------- Aligned with FarCom 300 Cogmind --------- Core Integrity 700/700 Matter 276/300 Energy 100/100 System Corruption 0% Temperature Cool (0) Movement Core (50) Location -7/Factory Parts ------- > --- POWER (4) -------- (None) > --- PROPULSION (4) --- (None) > --- UTILITY (3) ------ (None) > --- WEAPON (2) ------- Heavy Flail > --- INVENTORY (5) ---- Large Storage Unit Particle Charger Trap Reconfigurator Spread Laser Plasma Cutter Peak State ------------ > --- POWER ------------ Light Nuclear Core Light Nuclear Core > --- PROPULSION ------- Hover Unit Hover Unit Hover Unit Hover Unit > --- UTILITY ---------- Medium Storage Unit Particle Charger Hacking Suite > --- WEAPON ----------- Spread Laser Spread Laser > --- INVENTORY -------- VSS Leg Heat Sink Large Storage Unit High-capacity Matter Pod Weight Redist. System Advanced Weight Redist. System Trap Reconfigurator Spread Laser Plasma Cutter Mining Claw [Rating: 23] Favorites ----------- Power Light Nuclear Core Engine Ion Engine Power Core Light Nuclear Core Propulsion Hover Unit Treads Improved Treads Leg Aluminum Leg Wheel Wheel Hover Unit Hover Unit Flight Unit Improved Flight Unit Utility Heat Sink Device Heat Sink Storage Small Storage Unit Hackware Hacking Suite Weapon Spread Laser Energy Gun Spread Laser Impact Weapon Heavy Flail Slashing Weapon Mining Claw Build | -11 -10 -9 -9 -9 -8 -8 -7 ------- Run | Yrd Mat Mat Min Exi Min Mat Fac Slots Evolved 6 | . . 2 . . . 2 2 Power 3 | . . . . . . 1 2 Propulsion 2 | . . 1 . . . 1 . Utility 1 | . . 1 . . . . . Weapon . | . . . . . . . . Parts Attached 52 | 7 19 16 . 2 . 8 . Power 6 | 1 2 2 . 1 . . . Engine 4 | 1 2 1 . . . . . Core 2 | . . 1 . 1 . . . Reactor . | . . . . . . . . Propulsion 20 | 2 8 6 . . . 4 . Treads 1 | . . . . . . 1 . Leg 4 | . 3 . . . . 1 . Wheel 4 | 2 1 . . . . 1 . Hover 6 | . 2 3 . . . 1 . Flight 5 | . 2 3 . . . . . Utility 13 | 2 4 3 . 1 . 3 . Device 7 | 1 2 2 . . . 2 . Storage 5 | 1 2 1 . 1 . . . Processor . | . . . . . . . . Hackware 1 | . . . . . . 1 . Protection . | . . . . . . . . Artifact . | . . . . . . . . Weapon 13 | 2 5 5 . . . 1 . Energy Gun 11 | 2 5 4 . . . . . Energy Cannon . | . . . . . . . . Ballistic Gun . | . . . . . . . . Ballistic Cannon . | . . . . . . . . Launcher . | . . . . . . . . Special Weapon . | . . . . . . . . Impact Weapon 1 | . . . . . . 1 . Slashing Weapon 1 | . . 1 . . . . . Piercing Weapon . | . . . . . . . . Special Melee Weapon . | . . . . . . . . Unidentified Prototypes . | . . . . . . . . Parts Lost 24 | . 8 3 . . . 13 . Power 3 | . . 1 . . . 2 . Propulsion 10 | . 4 . . . . 6 . Utility 5 | . 1 2 . . . 2 . Weapon 6 | . 3 . . . . 3 . Highest Loss Streak 9 | . 6 3 . . . 9 . To Critical Strikes . | . . . . . . . . Average Backups 7 | 3 6 7 8 9 9 7 . Power . | . 1 . 1 1 1 . . Propulsion . | 1 1 . 1 1 1 . . Utility 2 | . 2 1 2 2 3 3 . Weapon 2 | . 1 3 3 3 3 1 . Tool/Special . | . . . . . . . . Unused Backups 14 | . 7 1 . 2 . 1 3 Power 2 | . 1 . . 1 . . . Propulsion 4 | . 4 . . . . . . Utility 4 | . 1 . . . . 1 2 Weapon 3 | . 1 1 . 1 . . . Tool/Special 1 | . . . . . . . 1 Average Slot Usage (%) 80 | . 88 92 100 78 78 60 . Engine 4 | . 11 5 . . . . . Core 5 | . . 5 11 11 11 6 . Leg 3 | . 7 . . . . 3 . Wheel 2 | . 6 . . . . . . Hover 14 | . 5 12 33 33 33 13 . Flight 4 | . 3 17 . . . . . Device 14 | . 11 20 22 22 22 9 . Storage 11 | . 14 11 11 11 11 8 . Energy Gun 15 | . 27 16 22 1 1 7 . Impact Weapon 1 | . . . . . . 4 . Slashing Weapon 1 | . . 3 . . . 2 . Peak Build Rating 23 | 9 15 18 15 15 14 23 . Average Rating 12 | 6 9 14 15 11 12 14 . On Entrance 10 | . 9 15 15 15 12 12 4 Avg Prop Armor Cover (%) 6 | . 8 4 . . . 7 . Naked Turns . | . . . . . . . . Heaviest Build 32 | 14 32 17 17 17 19 29 . Greatest Support 37 | 26 26 18 18 18 18 37 . Greatest Overweight (x) 7 | . 5 5 . . 1 7 . Average Overweight (x) . | . . . . . . . . Largest Inventory Capacity 15 | 8 15 8 8 10 10 10 . Average Capacity 9 | 7 11 8 8 9 10 9 . Most Carried 12 | 4 12 8 8 10 10 10 . Average Carried 7 | 3 6 7 8 9 9 7 . Final Capacity 10 | 8 8 8 8 10 10 5 5 Final Carried 10 | 4 8 8 8 10 10 5 5 Class Distribution -------------------- 53% | Scavenger-Mutant 46% | Mutant Dominant Class ---------------- Mutant | -10/Materials Scavenger-Mutant | -9/Materials Scavenger-Mutant | -9/Mines Scavenger-Mutant | -9/Exiles Scavenger-Mutant | -8/Mines Mutant | -8/Materials Mutant | -7/Factory Resources | -11 -10 -9 -9 -9 -8 -8 -7 ----------- Run | Yrd Mat Mat Min Exi Min Mat Fac Matter Collected 872 | 214 182 250 15 18 . 193 . Remotely . | . . . . . . . . Salvage Created 1120 | 14 391 502 . . . 213 . Parts 64 | 3 20 33 . . . 8 . Haulers Intercepted . | . . . . . . . . Recyclers Shooed . | . . . . . . . . Parts Field Recycled . | . . . . . . . . Retrieved Matter . | . . . . . . . . Parts Self-Destructed . | . . . . . . . . Prevented . | . . . . . . . . Parts Restored . | . . . . . . . . Kills | -11 -10 -9 -9 -9 -8 -8 -7 ------- Run | Yrd Mat Mat Min Exi Min Mat Fac Combat Hostiles Destroyed 26 | . 8 12 . . . 6 . Melee 1 | . . . . . . 1 . Guns 23 | . 8 12 . . . 3 . Classes Destroyed 8 | 1 3 4 . . . . . Worker 2 | . 1 . . . . 1 . Tunneler 1 | 1 . . . . . . . Operator 1 | . . 1 . . . . . Watcher 5 | . 1 3 . . . 1 . Swarmer 3 | . . 3 . . . . . Grunt 18 | . 8 6 . . . 4 . Brawler 1 | . . 1 . . . . . Sentry 4 | . . 2 . . . 2 . Best Kill Streak 7 | 1 4 7 . . . 2 . Combat Bots Only 7 | . 3 7 . . . 2 . Max Kills in Single Turn 2 | 1 1 2 . . . 1 . Gunslinging 1 | . . 1 . . . . . Exploded . | . . . . . . . . Melee 1 | . . . . . . 1 . Uniques/NPCs Destroyed . | . . . . . . . . Combat | -11 -10 -9 -9 -9 -8 -8 -7 -------- Run | Yrd Mat Mat Min Exi Min Mat Fac Hostile Shots Fired 209 | . 79 50 . . . 80 . Missed 53 | . 22 16 . . . 15 . Hits 156 | . 57 34 . . . 65 . Melee 6 | . . 4 . . . 2 . Projectile 150 | . 57 30 . . . 63 . AOE 1 | . 1 . . . . . . Critical Strikes 4 | . . 1 . . . 3 . Damage Taken 2385 | . 916 426 . . . 1043 . Core 619 | . 182 103 . . . 334 . Absorbed by Shields . | . . . . . . . . Core Remaining (%) 60 | 100 27 . . . 74 39 . Volleys Fired 104 | 7 41 39 . . . 17 . Largest 2 | 2 2 2 . . . 2 . Hottest 130 | 90 130 130 . . . 130 . Shots Fired 175 | 13 71 61 . . . 30 . Gun 175 | 13 71 61 . . . 30 . Cannon . | . . . . . . . . Launcher . | . . . . . . . . Special . | . . . . . . . . Kinetic . | . . . . . . . . Thermal 175 | 13 71 61 . . . 30 . Explosive . | . . . . . . . . Electromagnetic . | . . . . . . . . Robot Hit Streak 11 | 5 8 11 . . . 11 . Robot Miss Streak 8 | 2 6 8 . . . 6 . Penetration Max . | . . . . . . . . Secondary Targets 7 | . 1 4 . . . 2 . Max Gunslinging Chain 1 | . 1 1 . . . 1 . Shots Hit Robots 153 | 10 45 61 . . . 37 . Core Hits 131 | 1 20 71 . . . 39 . Critical Kills 1 | . . . . . . 1 . Critical Parts Destroyed 2 | . . . . . . 2 . Critical Strikes 7 | 1 3 . . . . 3 . Burn 4 | 1 3 . . . . . . Smash 3 | . . . . . . 3 . Melee Attacks 18 | . . 5 . . . 13 . Impact 11 | . . . . . . 11 . Slashing 7 | . . 5 . . . 2 . Piercing . | . . . . . . . . Sneak Attacks 1 | . . . . . . 1 . Combat Hostiles . | . . . . . . . . Follow-up Attacks . | . . . . . . . . Damage Inflicted 2427 | 120 646 890 . . . 771 . Guns 1912 | 120 646 698 . . . 448 . Cannons . | . . . . . . . . Explosions . | . . . . . . . . Melee 515 | . . 192 . . . 323 . Ramming . | . . . . . . . . Kinetic . | . . . . . . . . Thermal 1912 | 120 646 698 . . . 448 . Explosive . | . . . . . . . . Electromagnetic . | . . . . . . . . Impact 273 | . . . . . . 273 . Slashing 242 | . . 192 . . . 50 . Piercing . | . . . . . . . . Highest Corruption 8 | . . 8 8 8 8 2 . Average Corruption 7 | . . 7 8 8 8 2 . Corruption Purged . | . . . . . . . . Corruption Blocked . | . . . . . . . . Effects 25 | . . 13 1 9 2 . . Message Errors 8 | . . 4 1 1 2 . . Matter Fused 2 | . . 1 . 1 . . . Heat Flow Errors 3 | . . . . 3 . . . Energy Discharges 3 | . . 3 . . . . . Parts Rejected 1 | . . 1 . . . . . Data Loss (minor) 3 | . . . . 3 . . . Data Loss (major) 2 | . . 1 . 1 . . . Misfires 1 | . . 1 . . . . . Weapon Failures 2 | . . 2 . . . . . Overload Shots . | . . . . . . . . Overflow Damage 247 | . . 150 . . . 97 . Projectiles . | . . . . . . . . Explosions . | . . . . . . . . Melee 247 | . . 150 . . . 97 . Knockbacks 1 | . . . . . . 1 . Impact 1 | . . . . . . 1 . Kinetic . | . . . . . . . . Secondary . | . . . . . . . . Self-Inflicted Damage . | . . . . . . . . Shots . | . . . . . . . . Rammed . | . . . . . . . . Targets Rammed . | . . . . . . . . Kicked . | . . . . . . . . Crushed . | . . . . . . . . Highest Temperature 604 | 190 466 409 . 277 . 604 . Average Temperature 152 | 96 169 93 . 118 . 259 . Received Heat Transfer 1098 | . 429 120 . . . 549 . Effects 14 | . 3 1 . . . 10 . Shutdowns 4 | . 1 1 . . . 2 . Energy Bleed 2 | . 1 . . . . 1 . Interference 3 | . . . . . . 3 . Matter Decay 2 | . . . . . . 2 . Short Circuit 2 | . 1 . . . . 1 . Damage (minor) 1 | . . . . . . 1 . Siege Activations . | . . . . . . . . Martial Activations . | . . . . . . . . Shielding Activations . | . . . . . . . . Robots Disrupted . | . . . . . . . . Combat Hostiles . | . . . . . . . . Robots Corrupted 2 | . . . . . . 2 . Combat Hostiles 2 | . . . . . . 2 . Parts Fried 3 | . . . . . . 3 . Impact Corruptions 2 | . . . . . . 2 . Robots Melted . | . . . . . . . . Combat Hostiles . | . . . . . . . . Parts Melted 1 | . 1 . . . . . . Heat Transferred 3625 | 396 1789 875 . . . 565 . Parts Sabotaged . | . . . . . . . . Parts Stolen . | . . . . . . . . Parts Stripped . | . . . . . . . . Power Chain Reactions . | . . . . . . . . Alert | -11 -10 -9 -9 -9 -8 -8 -7 ------- Run | Yrd Mat Mat Min Exi Min Mat Fac Maximum Alert Level 1 | . . 1 . . . . . Low Security (%) 97 | 100 100 88 100 . 100 100 . Level 1 2 | . . 11 . . . . . Level 2 . | . . . . . . . . Level 3 . | . . . . . . . . Level 4 . | . . . . . . . . Level 5 . | . . . . . . . . High Security . | . . . . . . . . Max Security . | . . . . . . . . Peak Influence 229 | 5 85 229 74 . . 50 . Initial 74 | . . . 74 . . . . Average 44 | . 26 130 53 . . 11 . Influence Increases 899 | 5 263 409 . . . 222 . Destroy 0b10 Robot/C 520 | . 160 240 . . . 120 . Destroy 0b10 Robot/NC 60 | 5 10 35 . . . 10 . Destroy Leader 140 | . 52 56 . . . 32 . Successful Hack 12 | . 10 2 . . . . . Destroy Structure 2 | . 1 1 . . . . . Partial Spotted 30 | . . 15 . . . 15 . Lose Combat Pursuer 135 | . 30 60 . . . 45 . Influence Decreases 899 | 5 263 218 157 34 . 222 . Entered New Map 151 | . . . 117 34 . . . Time Decay 581 | 5 203 188 40 . . 145 . Lost Part 167 | . 60 30 . . . 77 . Squads Dispatched 8 | . 4 3 . . . 1 . Investigation 6 | . 3 2 . . . 1 . Extermination . | . . . . . . . . Reinforcement 2 | . 1 1 . . . . . Assault . | . . . . . . . . Garrison . | . . . . . . . . Intercept . | . . . . . . . . Searches Triggered . | . . . . . . . . Construction Impeded . | . . . . . . . . Haulers Reinforced . | . . . . . . . . Active Scanning Responses . | . . . . . . . . Cargo Convoy Interrupts . | . . . . . . . . Stealth | -11 -10 -9 -9 -9 -8 -8 -7 --------- Run | Yrd Mat Mat Min Exi Min Mat Fac Distress Signals 6 | . . 2 . . . 4 . Communications Jammed . | . . . . . . . . Distress Signals . | . . . . . . . . Times Spotted 62 | . 21 25 . . . 16 . Peak Tracking Total 8 | . 5 8 . . . 8 . Tactical Retreats 7 | . 2 3 . . . 2 . Traps | -11 -10 -9 -9 -9 -8 -8 -7 ------- Run | Yrd Mat Mat Min Exi Min Mat Fac Traps Triggered 3 | . 2 . . . . 1 . Indirectly . | . . . . . . . . Trap Hack Attempts . | . . . . . . . . Triggered . | . . . . . . . . Disarmed . | . . . . . . . . Reprogrammed . | . . . . . . . . Reused . | . . . . . . . . Traps Extracted . | . . . . . . . . Installed . | . . . . . . . . Triggered . | . . . . . . . . Machines | -11 -10 -9 -9 -9 -8 -8 -7 ---------- Run | Yrd Mat Mat Min Exi Min Mat Fac Machines Disabled . | . . . . . . . . Max in Single Turn . | . . . . . . . . Machines Repaired . | . . . . . . . . Machines Dismantled . | . . . . . . . . Machines Sabotaged . | . . . . . . . . Overloaded Fab Kills . | . . . . . . . . Hacking | -11 -10 -9 -9 -9 -8 -8 -7 --------- Run | Yrd Mat Mat Min Exi Min Mat Fac Machines Accessed 10 | . 3 3 . 1 . 3 . Terminals 5 | . 2 2 . . . 1 . Fabricators . | . . . . . . . . Repair Stations . | . . . . . . . . Recycling Units 2 | . 1 . . . . 1 . Scanalyzers 2 | . . 1 . . . 1 . Garrison Access . | . . . . . . . . Total Hacks 25 | . 10 7 . 1 . 7 . Successful 12 | . 4 3 . 1 . 4 . Failed 12 | . 6 4 . . . 2 . Catastrophic 1 | . 1 . . . . . . Database Lockouts 1 | . . . . . . 1 . Manual 1 | . . . . 1 . . . Terminals 12 | . 8 3 . . . 1 . Fabricators . | . . . . . . . . Repair Stations . | . . . . . . . . Recycling Units 6 | . 2 . . . . 4 . Scanalyzers 6 | . . 4 . . . 2 . Garrison Access . | . . . . . . . . Terminal Hacks 6 | . 4 . . 1 . 1 . Prototype ID Bank 2 | . 1 . . . . 1 . Surveillance Status 1 | . 1 . . . . . . Hauler Manifests 1 | . 1 . . . . . . Registered Components 1 | . 1 . . . . . . Proto ID Catalog 1 | . . . . 1 . . . Fabricator Hacks . | . . . . . . . . Repair Station Hacks . | . . . . . . . . Recycling Unit Hacks 2 | . . . . . . 2 . Report Inventory 1 | . . . . . . 1 . Retrieve Components 1 | . . . . . . 1 . Scanalyzer 4 | . . 3 . . . 1 . Retrieve Study 4 | . . 3 . . . 1 . Garrison Access Hacks . | . . . . . . . . Unauthorized Hacks . | . . . . . . . . Terminals . | . . . . . . . . Fabricators . | . . . . . . . . Repair Stations . | . . . . . . . . Recycling Units . | . . . . . . . . Scanalyzers . | . . . . . . . . Garrison Access . | . . . . . . . . Data Cores Recovered . | . . . . . . . . Used . | . . . . . . . . Hacking Detections 7 | . 3 3 . . . 1 . Full Trace Events 3 | . 1 2 . . . . . Feedback Events . | . . . . . . . . Feedback Blocked . | . . . . . . . . Robot Schematics Acquired . | . . . . . . . . Robots Built . | . . . . . . . . Authchips . | . . . . . . . . Time . | . . . . . . . . Total Robot Build Rating . | . . . . . . . . Part Schematics Acquired . | . . . . . . . . Parts Built . | . . . . . . . . Authchips . | . . . . . . . . Time . | . . . . . . . . Total Part Build Rating . | . . . . . . . . Part Studies Acquired 4 | . . 3 . . . 1 . Parts Repaired . | . . . . . . . . Time . | . . . . . . . . Parts Recycled . | . . . . . . . . Recycled Matter . | . . . . . . . . Retrieved Matter . | . . . . . . . . Retrieved Components 3 | . . . . . . 3 . Parts Scanalyzed . | . . . . . . . . Part Schematics Acquired . | . . . . . . . . Parts Damaged . | . . . . . . . . Bothacking | -11 -10 -9 -9 -9 -8 -8 -7 ------------ Run | Yrd Mat Mat Min Exi Min Mat Fac Used RIF Installer . | . . . . . . . . Robots Hacked . | . . . . . . . . Non-combat . | . . . . . . . . Combat . | . . . . . . . . Robot Hacks Applied . | . . . . . . . . Relay Couplers Released . | . . . . . . . . Fabnet Peak Effective % . | . . . . . . . . Robots Rewired . | . . . . . . . . Allies Hacked . | . . . . . . . . Hacks Repelled . | . . . . . . . . Allies | -11 -10 -9 -9 -9 -8 -8 -7 -------- Run | Yrd Mat Mat Min Exi Min Mat Fac Total Allies . | . . . . . . . . Largest Group . | . . . . . . . . Highest-Rated Group . | . . . . . . . . Highest-Rated Ally . | . . . . . . . . Total Orders . | . . . . . . . . Ally Attacks . | . . . . . . . . Total Damage . | . . . . . . . . Kills . | . . . . . . . . Allies Corrupted . | . . . . . . . . Allies Melted . | . . . . . . . . Intel | -11 -10 -9 -9 -9 -8 -8 -7 ------- Run | Yrd Mat Mat Min Exi Min Mat Fac Active Infowar (turns) 302 | 36 212 54 . . . . . Terrain 302 | 36 212 54 . . . . . Robot Analysis Total . | . . . . . . . . Derelict Logs Recovered 1 | . . . 1 . . . . Drone Launches . | . . . . . . . . Drone Recoveries . | . . . . . . . . Exploration | -11 -10 -9 -9 -9 -8 -8 -7 ------------- Run | Yrd Mat Mat Min Exi Min Mat Fac Turns Passed 2073 | 98 655 419 99 188 58 556 . Spaces Moved 1885 | 67 473 553 151 338 92 211 . Core 68 | 2 1 7 . . . 58 . Treads 8 | . . . . . . 8 . Legs 152 | . 84 . . . . 68 . Wheels 187 | 65 114 . . . . 8 . Hover 963 | . 113 200 151 338 92 69 . Flight 507 | . 161 346 . . . . . Fastest Speed 34 | 50 37 34 52 52 52 48 . Average Speed 70 | 88 100 43 52 52 53 117 . Slowest Speed 400 | 90 300 300 52 52 112 400 . Overloaded Moves . | . . . . . . . . Propulsion Burnouts . | . . . . . . . . Robots Hopped 1 | . . 1 . . . . . Potential Cave-ins . | . . . . . . . . Cave-ins Triggered . | . . . . . . . . Exploration Rate (%) 41 | 3 76 40 34 69 42 25 . Regions Visited 7 Branch Regions 3 Pre-discovered Areas 1 | . . . 1 . . . . Known Exits Taken . | . . . . . . . . Unknown Exits Taken 7 | 1 1 1 1 1 1 1 . Scrap Searched 1 | . . . 1 . . . . Spaces Dug 1 | . . 1 . . . . . Terrain Destroyed 1 | . . 1 . . . . . Melee 1 | . . 1 . . . . . Projectile . | . . . . . . . . AOE . | . . . . . . . . Terrain Rammed . | . . . . . . . . Walls Destroyed . | . . . . . . . . Machines Disabled . | . . . . . . . . Actions | -11 -10 -9 -9 -9 -8 -8 -7 --------- Run | Yrd Mat Mat Min Exi Min Mat Fac Total 2416 | 88 578 660 170 352 100 468 . Wait 261 | 4 17 10 20 . 7 203 . Move 1876 | 66 472 550 150 337 91 210 . Hop 1 | . . 1 . . . . . Pick Up 41 | 4 13 13 . 6 . 5 . Fast Attach 28 | 7 13 5 . . . 3 . Attach 22 | . 3 10 . . 1 8 . Detach 10 | . 2 4 . 1 1 2 . Swap 16 | . 4 8 . 2 . 2 . Drop 38 | . 13 14 . 6 . 5 . Fire 104 | 7 41 39 . . . 17 . Melee 18 | . . 5 . . . 13 . Ram . | . . . . . . . . Kick . | . . . . . . . . Crush . | . . . . . . . . Escape Stasis . | . . . . . . . . Rewire 1 | . . 1 . . . . . Trap . | . . . . . . . . Miscellaneous . | . . . . . . . . Route ------- -11/Scrapyard -10/Materials (discovered 4 exits: *Mat x2 / [*Min] / [*Sub]) -9/Materials (discovered 2 exits: *Mat / [*Min]) -9/Mines -9/Exiles -8/Mines -8/Materials -7/Factory History --------- Turn | Location | Event 16 | -11/Scrapyard | Discovered new exit (range 16) 99 | -11/Scrapyard | Entered Materials 285 | -10/Materials | Core integrity fell below 50% 311 | -10/Materials | Lost 6 parts (3n3w) 375 | -10/Materials | Discovered new exit (range 7) 406 | -10/Materials | Discovered new exit (range 16) 561 | -10/Materials | Discovered new exit (range 13) 616 | -10/Materials | Discovered new exit (range 16) 754 | -10/Materials | Entered another Materials area 754 | -9/Materials | Evolved 2 slots: Propulsion x1, Utility x1 860 | -9/Materials | Destroyed 7 combat bots 862 | -9/Materials | Lost 3 parts (1p2u) 891 | -9/Materials | Build established: Mutant 954 | -9/Materials | Discovered new exit (range 12) 991 | -9/Materials | Discovered new exit (range 10) 1173 | -9/Materials | Entered Mines 1217 | -9/Mines | Build established: Scavenger-Mutant 1225 | -9/Mines | Found a hidden stash of uninstalled traps 1234 | -9/Mines | Learned location of 1 exit from Lower Caves 1251 | -9/Mines | Learned location of Storage (-8) 1268 | -9/Mines | Deemed a non-threat by the Exiles lab entrance 1269 | -9/Mines | Discovered new exit (range 5) 1272 | -9/Mines | Entered Exiles 1299 | -9/Exiles | Met 8R-AWN 1308 | -9/Exiles | Met EX-HEX 1330 | -9/Exiles | Met EX-DEC 1379 | -9/Exiles | Met EX-BIN 1387 | -9/Exiles | Aligned with FarCom system 1387 | -9/Exiles | Given EX-Vault access code 1400 | -9/Exiles | Opened EX-Vault 1410 | -9/Exiles | Found Trap Reconfigurator 1422 | -9/Exiles | Warned to stay clear of 0b10 Research branches 1455 | -9/Exiles | Discovered new exit (range 12) 1460 | -9/Exiles | Left Exiles lab with Trap Reconfigurator 1460 | -9/Exiles | Entered Mines 1513 | -8/Mines | Discovered new exit (range 10) 1518 | -8/Mines | Entered Materials 1518 | -8/Materials | Evolved 2 slots: Power x1, Propulsion x1 1611 | -8/Materials | Central database locked down 1801 | -8/Materials | Lost 9 parts (2p4n1u2w) 2023 | -8/Materials | Build established: Mutant 2054 | -8/Materials | Core integrity fell below 50% 2070 | -8/Materials | Discovered new exit (range 8) 2074 | -8/Materials | Entered Factory 2074 | -7/Factory | Evolved 2 slots: Power x2 2074 | -7/Factory | Self-destructed Last Messages --------------- Lgt. Armor Plating fried. Heat Sink fried. Dropped Med. Storage Unit. Dropped Adv. Weight Redist. System. Acquired Trap Reconfigurator. Matter Filter disabled. Dropped Imp. Treads. Acquired Com. Wheel. Critical hit (Burn: +37). Com. Wheel destroyed. Mining Claw destroyed. System corrupted by crushing effect (+2). K-01 Serf cleans the Garrison Access. T-07 Excavator is excavating. EXIT=FOUND W-25 Informer sends out distress signal. PARAMETERS=POWER+2 LOCATION=UNKNOWN GOAL=ESCAPE Receiving FarCom transmissions... Map ----- +----------------------------------------------------+ | ????????????????????????????????????????? | | ????????????????????????????????????????? | | ????????????????????????????????????????? | | ????????????????????????????????????????? | | ????????????????????????????????????????? | | ????????????????????????????????????????? | | ????????????????????????????????????????? | | ????????????????????????????????????????? | | ????????????????????????????????????????? | | ????????????????????????????????????????? | | ????????????????????????????????????????? | | ????????????????????????????????????????? | | ????????????????????????????????????????? | | ????????????????????????????????????????? | | ????????????????????????????????????????? | | ????????????????????????????????????????? | | ????????????????????????????????????????? | | ????????????????????????????????????????? | | ????????????????????????????????????"???? | | ??????????????????????????????????""" ?? | | ????????????????????????????????? ?? | | ??????????????????????????????? ??? | | ???????????######+######+##### ????? | | ?????????? """?????? | | ?????????? """"????? | | ?????????? @ """ ????? | | ?????????? #? | | ?????????? """"" #? | | ??????????? #####+######### """?????? | | ??????????????????????????? """?????? | | ???????????????????????????? ?????? | | ???????????????????????????? ????? | | ????????????????????????????? ##+###???? | | ????????????????????????????? #????????? | | ?????????????????????????????? +????????? | | ??????????????????????????????##????????? | | ????????????????????????????????????????? | | ????????????????????????????????????????? | | ????????????????????????????????????????? | | ????????????????????????????????????????? | | ????????????????????????????????????????? | | ????????????????????????????????????????? | | ????????????????????????????????????????? | | ????????????????????????????????????????? | | ????????????????????????????????????????? | | ????????????????????????????????????????? | | ????????????????????????????????????????? | | ????????????????????????????????????????? | | ????????????????????????????????????????? | | ????????????????????????????????????????? | +----------------------------------------------------+ Best States ------------- Heat Dissipation 41 Energy Generation 23 Energy Capacity 250 Matter Stores 300 Matter Capacity 300 Sight Range 16 Terrain Scan Range 16 Terrain Scan Density 10 Additional Mass Support 9 Evasion (%) 63 Recoil Reduction 1 Particle Charging 15 Offensive Hacking 10 Item Schematics ----------------- None Robot Schematics ------------------ None Fabricated ------------ Nothing Repaired ---------- Nothing Studied --------- Flight Unit | -9/Materials | Hacked Lgt. Ion Engine | -9/Materials | Hacked Spread Laser | -9/Materials | Hacked Hover Unit | -8/Materials | Hacked Alien Tech Used ----------------- None Achievements -------------- None Challenges ------------ None Game ------ Seed LaunchNodeRay Manual? 0 Play Time 00:39:49 Cumulative 49.0 hours Start 2026.07.17 @ 18:26:52 End 2026.07.17 @ 19:15:37 Sessions 1 Manual Loads 0 Difficulty Rogue Special Mode None Game No. 61 Rogue 61 Adventurer 0 Explorer 0 Win Type - Total 0 Types 0/0/0/0/0/0/0/0/0/0 Lore% 42 Gallery% 31 Achievement% 28 Wizard Run 0 Options --------- Layout 1 ASCII 0 Keyboard 0 Movement Mouse Keybinds 0 Fullscreen 2 Font 18/SmallcapsGlow Map View 51x41 Zoom Use 0% Tactical HUD 0 Map Filters NONE Filters NONE Steam 1 RUN: 85fd90fd-a005-4276-87ae-3fcef70a0458